bitfinex/quotes_BTCUSD_20241128
["timestamp","ask_amount","ask_price","bid_price","bid_amount"]
[1732793724096,0.105285,94980.0,94979.0,0.00359983]
[1732793724810,0.315845,94983.0,94982.0,0.00359983]
[1732793725024,0.315845,94983.0,94982.0,0.01497038]
[1732793725280,0.001724,94985.0,94984.0,0.00359983]
[1732793725522,0.107003,94985.0,94984.0,0.00359983]
[1732793726426,0.107003,94985.0,94984.0,0.01070174]
[1732793726640,0.107003,94985.0,94984.0,0.01496439]
[1732793726866,0.107003,94985.0,94984.0,0.02206454]
[1732793728074,0.107003,94985.0,94984.0,0.00559983]
[1732793728338,0.107003,94985.0,94984.0,0.02906271]
[1732793729269,0.001724,94985.0,94984.0,0.02906271]
[1732793729542,0.107003,94985.0,94984.0,0.02906271]
[1732793732066,0.11170709,94985.0,94984.0,0.02906271]
[1732793732273,0.00642809,94985.0,94984.0,0.14854754]
[1732793732551,0.00642809,94985.0,94984.0,0.04326754]
[1732793732761,0.001724,94985.0,94984.0,0.14854754]
[1732793733001,0.00640082,94985.0,94984.0,0.04326754]
[1732793733238,0.00640213,94985.0,94984.0,0.04326754]
[1732793733717,0.00640213,94985.0,94984.0,0.14854754]
[1732793733960,0.00640213,94985.0,94984.0,0.15041075]
[1732793734217,0.001724,94985.0,94984.0,0.15041075]
[1732793735312,0.107003,94985.0,94984.0,0.04326754]
[1732793735529,0.001724,94985.0,94984.0,0.14854754]
[1732793735787,0.0054665,94985.0,94984.0,0.25325594]
[1732793736037,0.001724,94985.0,94984.0,0.25139275]
[1732793736516,0.210514,95006.0,95005.0,0.00359983]
[1732793736517,0.31577,95006.0,95005.0,0.00359983]
[1732793736764,0.31577,95006.0,95005.0,0.02206271]
[1732793737012,0.3195125,95006.0,95005.0,0.02206271]
[1732793738125,0.1089985,95006.0,95005.0,0.02206271]
[1732793738369,0.0037425,95006.0,95005.0,0.12931971]
[1732793738644,0.0037425,95006.0,95005.0,0.23402776]
[1732793738885,0.0008618,95014.0,95013.0,0.10884783]
[1732793739103,0.0008618,95014.0,95013.0,0.1096339]
[1732793739350,0.0008618,95014.0,95013.0,0.11068626]
[1732793739829,0.0008618,95014.0,95013.0,0.13621097]
[1732793740056,0.0008618,95014.0,95013.0,0.14329971]
[1732793740284,0.0008618,95014.0,95013.0,0.14146128]
[1732793740506,0.00461334,95014.0,95013.0,0.14146128]
[1732793740754,0.0008618,95014.0,95013.0,0.14146128]
[1732793741013,0.0008618,95014.0,95013.0,0.24430649]
[1732793741014,0.0018618,95014.0,95013.0,0.24430649]
[1732793741261,0.0018618,95014.0,95013.0,0.32100649]
[1732793741471,0.0008618,95014.0,95013.0,0.36400649]
[1732793742159,0.0018618,95014.0,95013.0,0.45806944]
[1732793742415,0.0008618,95014.0,95013.0,0.36400649]
[1732793742644,0.0008618,95014.0,95013.0,0.37300649]
[1732793742878,0.0018618,95014.0,95013.0,0.37300649]
[1732793743336,0.0008618,95014.0,95013.0,0.37300649]
[1732793744039,0.1071088,95014.0,95013.0,0.05221328]
[1732793744518,0.11137855,95014.0,95013.0,0.05221328]
[1732793744745,0.11137855,95014.0,95013.0,0.03803205]
[1732793744999,0.11137855,95014.0,95013.0,0.02903205]
[1732793745209,0.11137855,95014.0,95013.0,0.03303205]
[1732793745423,0.11137855,95014.0,95013.0,0.04721328]
[1732793745634,0.11137855,95014.0,95013.0,0.04321328]
[1732793745877,0.11037855,95014.0,95013.0,0.03921328]
[1732793746332,0.11037855,95014.0,95013.0,0.03621328]
[1732793746543,0.11037855,95014.0,95013.0,0.03921328]
[1732793746758,0.11037855,95014.0,95013.0,0.03621328]
[1732793747001,0.00513155,95014.0,95013.0,0.03821328]
[1732793747228,0.00513155,95014.0,95013.0,0.14532395]
[1732793747451,0.0008618,95014.0,95013.0,0.28916916]
[1732793747660,0.0008618,95014.0,95013.0,0.28930649]
[1732793748337,0.0008618,95014.0,95013.0,0.25669304]
[1732793748583,0.0008618,95014.0,95013.0,0.29424717]
[1732793748810,0.0008618,95014.0,95013.0,0.28924717]
[1732793749032,0.0008618,95014.0,95013.0,0.28724717]
[1732793749248,0.0008618,95014.0,95013.0,0.29224717]
[1732793749480,0.0008618,95014.0,95013.0,0.29524717]
[1732793749938,0.0008618,95014.0,95013.0,0.30690333]
[1732793750835,0.0008618,95014.0,95013.0,0.30390333]
[1732793751061,0.0008618,95014.0,95013.0,0.30690333]
[1732793751283,0.105234,95026.0,95025.0,0.00359983]
[1732793751503,0.105233,95027.0,95025.0,0.03615396]
[1732793751725,0.10932136,95026.0,95025.0,0.03615396]
[1732793751938,0.10932136,95026.0,95025.0,0.0475186]
[1732793752154,0.10932136,95026.0,95025.0,0.03618217]
[1732793753365,0.10932136,95026.0,95025.0,0.04218217]
[1732793753607,0.10932136,95026.0,95025.0,0.04518217]
[1732793754099,0.10932136,95026.0,95025.0,0.03618217]
[1732793754338,0.10932136,95026.0,95025.0,0.04753483]
[1732793754575,0.11032136,95026.0,95025.0,0.03618217]
[1732793755297,0.11032136,95026.0,95025.0,0.03624275]
[1732793755519,0.11132136,95026.0,95025.0,0.03624275]
[1732793755818,0.11032136,95026.0,95025.0,0.03624275]
[1732793756074,0.10932136,95026.0,95025.0,0.03824275]
[1732793756340,0.10932136,95026.0,95025.0,0.03624275]
[1732793756341,0.11132136,95026.0,95025.0,0.03624275]
[1732793756589,0.308191,95026.0,95025.0,0.03564292]
[1732793757088,0.306191,95026.0,95025.0,0.03564292]
[1732793757330,0.306191,95026.0,95025.0,0.03664292]
[1732793757808,0.306191,95026.0,95025.0,0.03564292]
[1732793758055,0.23212136,95026.0,95025.0,0.03924275]
[1732793758771,0.23298326,95026.0,95025.0,0.03924275]
[1732793759484,0.23398326,95026.0,95025.0,0.03924275]
[1732793759716,0.23298326,95026.0,95025.0,0.03624275]
[1732793759969,0.23398326,95026.0,95025.0,0.03624275]
[1732793760909,0.23498326,95026.0,95025.0,0.03624275]
[1732793761614,0.23498326,95026.0,95025.0,0.04760261]
[1732793761864,0.23498326,95026.0,95025.0,0.14147775]
[1732793761865,0.00694926,95026.0,95025.0,0.14147775]
[1732793762106,0.0090026,95026.0,95025.0,0.03624275]
[1732793762368,0.0090026,95026.0,95025.0,0.14147775]
[1732793762612,0.0090026,95026.0,95025.0,0.25432296]
[1732793762877,0.0008618,95043.0,95025.0,0.25432296]
[1732793762878,0.0008618,95043.0,95025.0,0.14908796]
[1732793763123,0.0008618,95043.0,95034.0,0.21045]
[1732793763124,0.105216,95042.0,95034.0,0.21045]
[1732793763370,0.00666564,95042.0,95035.0,0.02554778]
[1732793763612,0.00666564,95042.0,95036.0,0.03264292]
[1732793763613,0.210435,95041.0,95036.0,0.03264292]
[1732793763859,0.105222,95037.0,95028.0,0.00083531]
[1732793764100,0.105222,95037.0,95032.0,0.105227]
[1732793764338,0.00666564,95036.0,95033.0,0.02132551]
[1732793764570,0.00666564,95036.0,95034.0,0.03269861]
[1732793764832,0.11188864,95036.0,95035.0,0.03269861]
[1732793765790,0.00666564,95036.0,95035.0,0.13792261]
[1732793766016,0.00666564,95036.0,95035.0,0.14092261]
[1732793766265,0.105218,95040.0,95035.0,0.03569861]
[1732793766500,0.105221,95038.0,95036.0,0.03269861]
[1732793766741,0.00666564,95039.0,95037.0,0.03269861]
[1732793766973,0.105221,95038.0,95035.0,0.003]
[1732793767163,0.11188664,95038.0,95036.0,0.0327035]
[1732793767684,0.11188664,95038.0,95035.0,0.005]
[1732793767685,0.11188664,95038.0,95037.0,0.0327035]
[1732793767937,0.00666564,95038.0,95037.0,0.0327035]
[1732793768179,0.11188664,95038.0,95037.0,0.0327035]
[1732793768405,0.210435,95042.0,95037.0,0.0327035]
[1732793768634,0.00666564,95038.0,95036.0,0.106222]
[1732793768867,0.105219,95040.0,95037.0,0.03270594]
[1732793769159,0.0008618,95043.0,95042.0,0.10881583]
[1732793769395,0.0008618,95043.0,95042.0,0.23485339]
[1732793769625,0.0008618,95043.0,95042.0,0.43736698]
[1732793769859,0.0008618,95043.0,95042.0,0.57838244]
[1732793770115,0.0017248,95053.0,95052.0,0.10880483]
[1732793770345,0.0017248,95053.0,95052.0,0.14337266]
[1732793770593,0.0017248,95053.0,95052.0,0.14151077]
[1732793770848,0.0017248,95053.0,95052.0,0.14337266]
[1732793771088,0.0017248,95053.0,95052.0,0.14333226]
[1732793772030,0.0017248,95053.0,95052.0,0.34018609]
[1732793772296,0.0017248,95053.0,95052.0,0.04526537]
[1732793772520,0.0017248,95053.0,95052.0,0.15117275]
[1732793772751,0.0017248,95053.0,95052.0,0.15596321]
[1732793773003,0.0017248,95053.0,95052.0,0.14696321]
[1732793773225,0.0017248,95053.0,95052.0,0.03626537]
[1732793773455,0.0017248,95053.0,95052.0,0.15047037]
[1732793773678,0.0017248,95053.0,95052.0,0.15547037]
[1732793774401,0.0017248,95053.0,95052.0,0.15542638]
[1732793774867,0.0017248,95053.0,95052.0,0.15728832]
[1732793776981,0.0017248,95053.0,95052.0,0.25129694]
[1732793777215,0.0017248,95053.0,95052.0,0.15542638]
[1732793777458,0.0017248,95053.0,95052.0,0.249435]
[1732793777691,0.0008622,95067.0,95052.0,0.249435]
[1732793777692,0.0008622,95067.0,95053.0,0.0763]
[1732793777928,0.0008622,95067.0,95066.0,0.10878983]
[1732793778218,0.0008622,95067.0,95066.0,0.12480653]
[1732793778449,0.0008622,95067.0,95066.0,0.14320469]
[1732793778692,0.0008622,95067.0,95066.0,0.14134302]
[1732793779640,0.0008622,95067.0,95066.0,0.15034302]
[1732793779875,0.00883298,95067.0,95066.0,0.15034302]
[1732793780798,0.00883298,95067.0,95066.0,0.15534302]
[1732793781043,0.00883298,95067.0,95066.0,0.15531158]
[1732793781274,0.105183,95072.0,95066.0,0.05012158]
[1732793781506,0.210359,95076.0,95068.0,0.105187]
[1732793781507,0.105182,95074.0,95068.0,0.105187]
[1732793781762,0.09405615,95140.0,95069.0,0.04035491]
[1732793781999,0.210355,95077.0,95070.0,0.04035491]
[1732793782226,0.210355,95077.0,95067.0,0.10704964]
[1732793782227,0.105183,95072.0,95071.0,0.04035491]
[1732793783392,0.105183,95072.0,95071.0,0.05166607]
[1732793784281,0.105183,95072.0,95071.0,0.04335491]
[1732793785378,0.105183,95072.0,95071.0,0.04695474]
[1732793785612,0.105183,95072.0,95071.0,0.05395474]
[1732793786309,0.105183,95072.0,95071.0,0.02538039]
[1732793786310,0.40355301,95072.0,95071.0,0.02538039]
[1732793786577,0.40355301,95072.0,95071.0,0.01838039]
[1732793786808,0.105191,95065.0,95064.0,0.01414136]
[1732793787029,0.105191,95065.0,95064.0,0.00359983]
[1732793787488,0.105191,95065.0,95064.0,0.01491319]
[1732793787757,0.105191,95065.0,95064.0,0.00359983]
[1732793788949,0.105194,95062.0,95061.0,0.00359983]
[1732793789185,0.32223887,95065.0,95064.0,0.02216316]
[1732793789427,0.56841821,95065.0,95064.0,0.0300117]
[1732793789659,0.80015909,95065.0,95064.0,0.0280117]
[1732793789895,0.80015909,95065.0,95064.0,0.01408154]
[1732793790132,0.80015909,95065.0,95064.0,0.006]
[1732793790365,0.80015909,95065.0,95064.0,0.01308193]
[1732793790839,0.82154633,95065.0,95064.0,0.01308193]
[1732793791113,0.82154633,95065.0,95064.0,0.006]
[1732793791345,0.82154633,95065.0,95047.0,0.00359983]
[1732793791346,0.105204,95053.0,95047.0,0.00359983]
[1732793791571,0.182704,95053.0,95052.0,0.0201493]
[1732793791797,0.18935714,95053.0,95052.0,0.0201493]
[1732793792039,0.29780764,95053.0,95052.0,0.0201493]
[1732793792277,0.23745714,95053.0,95052.0,0.0280091]
[1732793792515,0.23745714,95053.0,95052.0,0.03160893]
[1732793792979,0.23845714,95053.0,95052.0,0.03160893]
[1732793793243,0.23845714,95053.0,95052.0,0.02374913]
[1732793793715,0.23845714,95053.0,95052.0,0.03160862]
[1732793794436,0.23845714,95053.0,95052.0,0.04579344]
[1732793794437,0.11285714,95053.0,95052.0,0.04579344]
[1732793794659,0.11285714,95053.0,95052.0,0.04219361]
[1732793794881,0.39156816,95053.0,95052.0,0.02800879]
[1732793795108,0.39156816,95053.0,95052.0,0.0201493]
[1732793795109,0.54156816,95053.0,95052.0,0.0201493]
[1732793795334,0.54156816,95053.0,95052.0,0.00880921]
[1732793795817,0.54156816,95053.0,95052.0,0.0017226]
[1732793795818,0.54142946,95053.0,95052.0,0.0017226]
[1732793796056,0.54242946,95053.0,95052.0,0.0017226]
[1732793796550,0.54142946,95053.0,95052.0,0.0017226]
[1732793796794,0.56213512,95053.0,95052.0,0.0017226]
[1732793797019,0.5746565,95053.0,95052.0,0.0017226]
[1732793800609,0.5746565,95053.0,95025.0,0.0017232]
[1732793800610,0.188234,95026.0,95025.0,0.0017232]
[1732793800841,0.11176721,95026.0,95025.0,0.01240334]
[1732793801087,0.00653321,95026.0,95025.0,0.02373334]
[1732793801329,0.11176721,95026.0,95025.0,0.02373334]
[1732793801586,0.105234,95026.0,95025.0,0.02373334]
[1732793801821,0.315681,95033.0,95032.0,0.00359983]
[1732793802060,0.315681,95033.0,95032.0,0.01068014]
[1732793802515,0.105226,95033.0,95032.0,0.01068014]
[1732793803199,0.105226,95033.0,95032.0,0.02401014]
[1732793803681,0.105226,95033.0,95032.0,0.02801014]
[1732793803957,0.105226,95033.0,95032.0,0.02601014]
[1732793804876,0.11174853,95033.0,95032.0,0.02601014]
[1732793805355,0.11174853,95033.0,95032.0,0.02201014]
[1732793805588,0.11174853,95033.0,95032.0,0.02401014]
[1732793805813,0.11174853,95033.0,95032.0,0.01268014]
[1732793806509,0.11174853,95033.0,95032.0,0.01068014]
[1732793806730,0.11174853,95033.0,95032.0,0.01468014]
[1732793806955,0.11174853,95033.0,95032.0,0.00759983]
[1732793807175,0.11174853,95033.0,95032.0,0.01067419]
[1732793807389,0.11174853,95033.0,95032.0,0.01239659]
[1732793808532,0.11174853,95033.0,95032.0,0.02371707]
[1732793808982,0.11174853,95033.0,95032.0,0.01239659]
[1732793809273,0.00652253,95033.0,95032.0,0.13194407]
[1732793809497,0.00652253,95033.0,95032.0,0.13287638]
[1732793809726,0.315616,95052.0,95051.0,0.00359983]
[1732793810186,0.32214254,95052.0,95051.0,0.00359983]
[1732793810633,0.32214254,95052.0,95051.0,0.01067537]
[1732793811089,0.00652654,95052.0,95051.0,0.01067537]
[1732793811330,0.00652654,95052.0,95051.0,0.23004706]
[1732793811783,0.0008613,95053.0,95051.0,0.13899691]
[1732793812009,0.0008613,95053.0,95052.0,0.0361517]
[1732793812232,0.1060653,95053.0,95052.0,0.0361517]
[1732793812458,0.00740394,95053.0,95052.0,0.0361517]
[1732793812931,0.00740394,95053.0,95052.0,0.1413567]
[1732793813208,0.0008613,95053.0,95052.0,0.14203174]
[1732793813425,0.0008613,95053.0,95052.0,0.15335599]
[1732793813645,0.0008613,95053.0,95052.0,0.15270433]
[1732793813889,0.0008613,95053.0,95052.0,0.15570433]
[1732793814113,0.0008613,95053.0,95052.0,0.14437287]
[1732793814815,0.0008613,95053.0,95052.0,0.15137287]
[1732793815268,0.105189,95067.0,95066.0,0.00359983]
[1732793815534,0.0008612,95070.0,95069.0,0.00359983]
[1732793815755,0.0008612,95070.0,95069.0,0.03616787]
[1732793816526,0.0008612,95070.0,95069.0,0.14135387]
[1732793816767,0.0008612,95070.0,95069.0,0.14217385]
[1732793817468,0.0008612,95070.0,95069.0,0.14335387]
[1732793818139,0.0008612,95070.0,95069.0,0.14835387]
[1732793818361,0.0008612,95070.0,95069.0,0.14335387]
[1732793818839,0.0008612,95070.0,95069.0,0.15035387]
[1732793819300,0.0008612,95070.0,95069.0,0.1616712]
[1732793819558,0.0008612,95070.0,95069.0,0.0544852]
[1732793819776,0.0008612,95070.0,95069.0,0.1616712]
[1732793820004,0.00748942,95070.0,95069.0,0.1616712]
[1732793820230,0.0008612,95070.0,95069.0,0.1616712]
[1732793820469,0.0008612,95070.0,95069.0,0.16162671]
[1732793820965,0.00748942,95070.0,95069.0,0.16162671]
[1732793821207,0.1060462,95070.0,95069.0,0.05644071]
[1732793821460,0.00748942,95070.0,95069.0,0.04512438]
[1732793821918,0.0008612,95070.0,95069.0,0.04512438]
[1732793822811,0.11267171,95070.0,95069.0,0.04512438]
[1732793823050,0.0008612,95070.0,95069.0,0.04512438]
[1732793823274,0.00748671,95070.0,95069.0,0.04512438]
[1732793823488,0.0008612,95070.0,95069.0,0.04512438]
[1732793823923,0.00754218,95070.0,95069.0,0.04512438]
[1732793824136,0.0008612,95070.0,95069.0,0.04512438]
[1732793824377,0.00754218,95070.0,95069.0,0.04512438]
[1732793825147,0.11272718,95070.0,95069.0,0.04512438]
[1732793825401,0.11272718,95070.0,95069.0,0.0309818]
[1732793825862,0.11272718,95070.0,95069.0,0.03095996]
[1732793826084,0.11272718,95070.0,95069.0,0.02195996]
[1732793826329,0.11272718,95070.0,95069.0,0.03195996]
[1732793826791,0.11272718,95070.0,95069.0,0.02895996]
[1732793827256,0.11272718,95070.0,95069.0,0.03195996]
[1732793827715,0.11272718,95070.0,95069.0,0.02495996]
[1732793828712,0.11272718,95070.0,95069.0,0.02895996]
[1732793829185,0.11272718,95070.0,95069.0,0.02895177]
[1732793829636,0.11272718,95070.0,95069.0,0.02595177]
[1732793830083,0.19072718,95070.0,95069.0,0.02335194]
[1732793830339,0.44357239,95070.0,95069.0,0.01205786]
[1732793830557,0.44357239,95070.0,95069.0,0.005]
[1732793831034,0.44357239,95070.0,95069.0,0.004]
[1732793831035,0.45461729,95070.0,95069.0,0.004]
[1732793831253,0.105195,95061.0,95060.0,0.00359983]
[1732793831484,0.11186803,95061.0,95060.0,0.02196373]
[1732793831934,0.00667303,95061.0,95060.0,0.02196373]
[1732793832251,0.00667303,95061.0,95060.0,0.12715973]
[1732793832462,0.1060462,95070.0,95069.0,0.00359983]
[1732793832692,0.1080462,95070.0,95069.0,0.00359983]
[1732793832937,0.1080462,95070.0,95069.0,0.02196484]
[1732793833168,0.1060462,95070.0,95069.0,0.02196484]
[1732793833391,0.1060462,95070.0,95069.0,0.03609437]
[1732793834301,0.0008612,95070.0,95069.0,0.03609437]
[1732793834864,0.00638253,95070.0,95069.0,0.03609437]
[1732793834955,0.11156753,95070.0,95069.0,0.03609437]
[1732793835426,0.11156753,95070.0,95069.0,0.04409437]
[1732793835652,0.11156753,95070.0,95069.0,0.01159983]
[1732793835872,0.11156753,95070.0,95069.0,0.04411006]
[1732793836165,0.11156753,95070.0,95069.0,0.04611006]
[1732793836394,0.11156753,95070.0,95069.0,0.0494214]
[1732793836621,0.11156753,95070.0,95069.0,0.0554214]
[1732793836863,0.11156753,95070.0,95069.0,0.04411006]
[1732793837320,0.00638253,95070.0,95069.0,0.04211006]
[1732793837538,0.00638253,95070.0,95069.0,0.04511006]
[1732793837759,0.0008612,95070.0,95069.0,0.04511006]
[1732793837985,0.00638253,95070.0,95069.0,0.14429606]
[1732793838225,0.0008612,95070.0,95069.0,0.15129606]
[1732793838440,0.0008612,95070.0,95069.0,0.14615767]
[1732793838736,0.001724,95080.0,95069.0,0.04097167]
[1732793838971,0.001724,95080.0,95079.0,0.00359983]
[1732793839237,0.001724,95080.0,95079.0,0.14128506]
[1732793839478,0.001724,95080.0,95079.0,0.24413027]
[1732793839923,0.000862,95081.0,95080.0,0.00359983]
[1732793840144,0.000862,95081.0,95080.0,0.14128406]
[1732793841533,0.106035,95081.0,95080.0,0.03611006]
[1732793841760,0.106035,95081.0,95080.0,0.03451023]
[1732793841761,0.229835,95081.0,95080.0,0.03451023]
[1732793841984,0.229835,95081.0,95080.0,0.03811006]
[1732793842238,0.24292793,95081.0,95080.0,0.03885362]
[1732793842474,0.24292793,95081.0,95080.0,0.03459721]
[1732793842724,0.49577314,95081.0,95080.0,0.03459721]
[1732793842952,0.49577314,95081.0,95080.0,0.0090852]
[1732793843396,0.49577314,95081.0,95080.0,0.002]
[1732793843625,0.48268021,95081.0,95080.0,0.002]
[1732793844155,0.48268021,95081.0,95080.0,0.00908675]
[1732793844399,0.33268021,95081.0,95080.0,0.02042494]
[1732793844625,0.379835,95081.0,95080.0,0.02142494]
[1732793844842,0.379835,95081.0,95080.0,0.03359764]
[1732793845354,0.58551167,95081.0,95080.0,0.03359764]
[1732793845604,0.48268021,95081.0,95080.0,0.03359545]
[1732793846116,0.48268021,95081.0,95080.0,0.03259545]
[1732793846346,0.48368021,95081.0,95080.0,0.03359545]
[1732793846800,0.48268021,95081.0,95080.0,0.03259545]
[1732793847017,0.105186,95069.0,95068.0,0.00359983]
[1732793847245,0.105186,95069.0,95068.0,0.03619721]
[1732793848443,0.105186,95069.0,95068.0,0.03259738]
[1732793848917,0.105186,95069.0,95068.0,0.03259827]
[1732793849830,0.105186,95069.0,95063.0,0.00359983]
[1732793849831,0.00553951,95069.0,95063.0,0.00359983]
[1732793850050,0.105192,95064.0,95063.0,0.00359983]
[1732793850589,0.11073151,95064.0,95063.0,0.01777331]
[1732793850816,0.11073151,95064.0,95063.0,0.02485814]
[1732793851065,0.11073151,95064.0,95063.0,0.03619537]
[1732793851515,0.11073151,95064.0,95063.0,0.01493706]
[1732793851759,0.11073151,95064.0,95063.0,0.02910628]
[1732793851986,0.11073151,95064.0,95063.0,0.04752287]
[1732793852923,0.11073151,95064.0,95063.0,0.05052287]
[1732793853666,0.00553951,95064.0,95063.0,0.15571587]
[1732793853881,0.105189,95067.0,95063.0,0.05052287]
[1732793854103,0.105188,95068.0,95064.0,0.03258581]
[1732793854327,0.00459729,95066.0,95065.0,0.03258581]
[1732793854554,0.210371,95071.0,95065.0,0.03258581]
[1732793854779,0.00459729,95066.0,95065.0,0.09412906]
[1732793855026,0.10978729,95066.0,95065.0,0.13030872]
[1732793855257,0.10519,95066.0,95065.0,0.03617966]
[1732793855538,0.10978729,95066.0,95065.0,0.13830872]
[1732793855780,0.10519,95066.0,95065.0,0.13830872]
[1732793856019,0.00459729,95066.0,95065.0,0.13830872]
[1732793856244,0.00459729,95066.0,95065.0,0.24349972]
[1732793856480,0.00459729,95066.0,95065.0,0.11679083]
[1732793856713,0.105185,95071.0,95065.0,0.14937165]
[1732793856945,0.105185,95071.0,95070.0,0.00359983]
[1732793857162,0.105185,95071.0,95070.0,0.0220136]
[1732793857394,0.105185,95071.0,95070.0,0.03618065]
[1732793858553,0.105185,95071.0,95070.0,0.04218065]
[1732793859715,0.15403038,95080.0,95079.0,0.00359983]
[1732793859716,0.105174,95080.0,95079.0,0.00359983]
[1732793859955,0.105174,95080.0,95079.0,0.03618065]
[1732793860438,0.0821,95089.0,95079.0,0.03618065]
[1732793860439,0.21034,95084.0,95083.0,0.00359983]
[1732793860673,0.31551,95084.0,95083.0,0.00359983]
[1732793860904,0.31551,95084.0,95083.0,0.03618065]
[1732793861360,0.03,95088.0,95085.0,0.00359983]
[1732793861582,0.03,95088.0,95087.0,0.00359983]
[1732793861806,0.03,95088.0,95087.0,0.03618065]
[1732793862331,0.03,95088.0,95087.0,0.14134665]
[1732793862590,0.03,95088.0,95087.0,0.32954802]
[1732793862811,0.03,95088.0,95087.0,0.48899583]
[1732793863797,0.03,95088.0,95087.0,0.38382983]
[1732793864502,0.03,95088.0,95087.0,0.32954752]
[1732793864503,0.031,95088.0,95087.0,0.32954752]
[1732793864737,0.031,95088.0,95087.0,0.6771967]
[1732793864992,0.031,95088.0,95087.0,0.5720307]
[1732793865231,0.03,95088.0,95087.0,0.5720307]
[1732793865480,0.03466195,95088.0,95087.0,0.38782983]
[1732793865705,0.03,95088.0,95087.0,0.49299583]
[1732793866001,0.03,95088.0,95087.0,0.38782983]
[1732793867459,0.03,95088.0,95087.0,0.17726146]
[1732793867682,0.03,95088.0,95087.0,0.18626146]
[1732793867915,0.03,95088.0,95087.0,0.17726146]
[1732793868149,0.03,95088.0,95087.0,0.18826146]
[1732793868391,0.03,95088.0,95087.0,0.04718065]
[1732793868846,0.03,95088.0,95087.0,0.04518065]
[1732793869070,0.03466195,95088.0,95087.0,0.04918065]
[1732793869290,0.03552305,95088.0,95087.0,0.04918065]
[1732793870495,0.0308611,95088.0,95087.0,0.14318643]
[1732793870717,0.14068805,95088.0,95087.0,0.14307493]
[1732793870940,0.03552305,95088.0,95087.0,0.14307493]
[1732793871216,0.14068805,95088.0,95087.0,0.04546932]
[1732793871444,0.26658805,95088.0,95087.0,0.04546932]
[1732793871705,0.51943326,95088.0,95087.0,0.04546932]
[1732793871926,0.51943326,95088.0,95087.0,0.03135075]
[1732793872181,0.53055721,95088.0,95087.0,0.0200574]
[1732793872467,0.53055721,95088.0,95087.0,0.0160574]
[1732793872690,0.53055721,95088.0,95087.0,0.0070574]
[1732793872934,0.53055721,95088.0,95064.0,0.09400578]
[1732793872935,0.1258,95066.0,95064.0,0.09400578]
[1732793873195,0.105192,95064.0,95063.0,0.00532203]
[1732793873422,0.105192,95064.0,95063.0,0.0378213]
[1732793873656,0.10985395,95064.0,95063.0,0.0378213]
[1732793875953,0.17549435,95064.0,95063.0,0.03422147]
[1732793876179,0.17549435,95064.0,95063.0,0.02008989]
[1732793876407,0.32549435,95064.0,95063.0,0.02008989]
[1732793876625,0.32549435,95064.0,95063.0,0.01078612]
[1732793877075,0.32549435,95064.0,95063.0,0.02007851]
[1732793877314,0.26085395,95064.0,95063.0,0.02007851]
[1732793877544,0.26185395,95064.0,95063.0,0.00878612]
[1732793877773,0.26085395,95064.0,95063.0,0.02007665]
[1732793878007,0.26185395,95064.0,95063.0,0.00878612]
[1732793878227,0.26185395,95064.0,95063.0,0.02007596]
[1732793878452,0.26185395,95064.0,95063.0,0.00878612]
[1732793878686,0.26185395,95064.0,95063.0,0.02007414]
[1732793878944,0.26085395,95064.0,95063.0,0.00878612]
[1732793879177,0.256192,95064.0,95063.0,0.00878612]
[1732793879667,0.33848541,95064.0,95063.0,0.00878612]
[1732793879917,0.257192,95064.0,95063.0,0.00878612]
[1732793880660,0.257192,95064.0,95063.0,0.00877517]
[1732793881330,0.107192,95064.0,95063.0,0.00877517]
[1732793881798,0.107192,95064.0,95063.0,0.02365934]
[1732793882253,0.107192,95064.0,95063.0,0.02005951]
[1732793882536,0.155692,95064.0,95063.0,0.0341652]
[1732793883024,0.4455362,95064.0,95063.0,0.02005951]
[1732793883248,0.4455362,95064.0,95063.0,0.0017222]
[1732793883464,0.4455362,95064.0,95063.0,0.00877421]
[1732793883465,0.4465362,95064.0,95063.0,0.00877421]
[1732793883693,0.4455362,95064.0,95063.0,0.00877421]
[1732793883909,0.4445362,95064.0,95063.0,0.00877421]
[1732793884140,0.236892,95064.0,95063.0,0.00877421]
[1732793884370,0.237892,95064.0,95063.0,0.02005404]
[1732793884596,0.237892,95064.0,95063.0,0.00877421]
[1732793884597,0.238892,95064.0,95063.0,0.00877421]
[1732793884827,0.238892,95064.0,95063.0,0.02005405]
[1732793885533,0.237892,95064.0,95063.0,0.02005405]
[1732793885758,0.238892,95064.0,95063.0,0.02005405]
[1732793886248,0.237892,95064.0,95063.0,0.02004333]
[1732793886498,0.238892,95064.0,95063.0,0.02004333]
[1732793886729,0.237892,95064.0,95063.0,0.02004333]
[1732793887184,0.30488261,95064.0,95063.0,0.02004333]
[1732793887421,0.30588261,95064.0,95063.0,0.02004333]
[1732793887670,0.55872782,95064.0,95063.0,0.00876821]
[1732793889277,0.49173721,95064.0,95063.0,0.00876821]
[1732793890467,0.388892,95064.0,95063.0,0.00876821]
[1732793890696,0.388892,95064.0,95063.0,0.02003144]
[1732793891131,0.388892,95064.0,95063.0,0.02363127]
[1732793891132,0.107192,95064.0,95063.0,0.02363127]
[1732793891852,0.106192,95064.0,95063.0,0.02363127]
[1732793892092,0.107192,95064.0,95063.0,0.02363127]
[1732793892769,0.106192,95064.0,95063.0,0.02363127]
[1732793893529,0.105192,95064.0,95063.0,0.02563127]
[1732793894206,0.1577862,95064.0,95063.0,0.02563127]
[1732793894451,0.1577862,95064.0,95063.0,0.02203144]
[1732793894903,0.2031862,95064.0,95063.0,0.02203144]
[1732793895132,0.2861862,95064.0,95063.0,0.02203144]
[1732793895380,0.2871862,95064.0,95063.0,0.02203144]
[1732793895879,0.234592,95064.0,95063.0,0.02003144]
[1732793896338,0.235592,95064.0,95063.0,0.02003144]
[1732793896555,0.235592,95064.0,95063.0,0.02003216]
[1732793896776,0.235592,95064.0,95063.0,0.0200452]
[1732793897430,0.234592,95064.0,95063.0,0.0200452]
[1732793897652,0.107192,95064.0,95063.0,0.02364503]
[1732793897895,0.107192,95064.0,95063.0,0.03774895]
[1732793898560,0.106192,95064.0,95063.0,0.03774895]
[1732793899000,0.106192,95064.0,95063.0,0.01474895]
[1732793899484,0.107192,95064.0,95063.0,0.01474895]
[1732793899721,0.106192,95064.0,95063.0,0.01474895]
[1732793899944,0.106192,95064.0,95063.0,0.01574895]
[1732793900178,0.106192,95064.0,95063.0,0.01510392]
[1732793900611,0.105192,95064.0,95063.0,0.01510392]
[1732793900835,0.15901573,95064.0,95063.0,0.01410392]
[1732793901293,0.105192,95064.0,95063.0,0.01474895]
[1732793901523,0.105192,95064.0,95063.0,0.01479564]
[1732793901752,0.106192,95064.0,95063.0,0.01479564]
[1732793902445,0.33363721,95064.0,95063.0,0.01415061]
[1732793902658,0.41020547,95064.0,95063.0,0.01415061]
[1732793903138,0.105201,95056.0,95055.0,0.00064503]
[1732793903391,0.105203,95054.0,95053.0,0.00236763]
[1732793903628,0.48294821,95054.0,95053.0,0.01430311]